Cogmind - Beta 10.2 @@@ ROGUE MODE // 2022.02.06 @ 23:16:25 Player: Conner Result: Destroyed by 3X-ENA(z) with Zionite Laser-S Performance ------------- Evolutions (3) 1500 Regions Visited (12) 2400 Robots Destroyed (66) 330 Value Destroyed (1731) 1731 Prototype IDs (12) 240 Alien Tech Used (0) 0 Bonus (1489) 1489 TOTAL SCORE: 7690 Bonus ------- High Alert Combat Kills 22 Follower Combat Kills 179 Aligned with FarCom 300 Destroyed Z-Imprinter 1000 Friendly Fire -12 Cogmind --------- Core Integrity 0/700 Matter 300/300 Energy 100/100 System Corruption 0% Temperature Cool (18) Movement Core (50) Location -7/Deep Caves Parts ------- > --- POWER (1) -------- (None) > --- PROPULSION (5) --- (None) > --- UTILITY (5) ------ (None) > --- WEAPON (2) ------- (None) > --- INVENTORY (4) ---- Advanced Heat Sink Advanced Heat Sink AWS/Gauss Peak State ------------ > --- POWER ------------ Zionite Light DM Reactor > --- PROPULSION ------- Enhanced Flexi-carbon Leg Zionite Glidesys I Zionite Glidesys I Zionite Glidesys I Zionite Glidesys II > --- UTILITY ---------- Experimental Heat Sink High-capacity Storage Unit Long-range Sensor Array Layered Medium Armor Plating Makeshift Hacking Suite > --- WEAPON ----------- Flak Gun Enhanced Flamer > --- INVENTORY -------- Zionite Light DM Reactor High-capacity Storage Unit High-capacity Storage Unit Advanced Phase Shifter System Shield Zionite Laser-M AWS/Gauss Enhanced Flamer Enhanced Flamer Enhanced Flamer CR-A16's Pointy Stick [Rating: 74] Favorites ----------- Power Improved Deuterium Engine Engine Improved Deuterium Engine Reactor Zionite Light DM Reactor Propulsion Compact Wheel Treads Improved Treads Leg Enhanced Flexi-carbon Leg Wheel Compact Wheel Hover Unit Zionite Glidesys I Utility High-capacity Storage Unit Device Long-range Sensor Array Storage High-capacity Storage Unit Processor Terrain Scan Processor Hackware Makeshift Hacking Suite Protection Improved Medium Armor Plating Weapon Flak Gun Energy Gun Zionite Laser-M Ballistic Gun Flak Gun Special Weapon Enhanced Flamer Build | -11 -10 -10 -9 -9 -9 -8 -8 -7 -7 -7 -7 -7 ------- Run | Scr Mat Min Mat Min Exi Min Mat Fac Low Low Zio Dee Slots Evolved 6 | . . . 2 . . . 2 2 . . . . Power . | . . . . . . . . . . . . . Propulsion 3 | . . . 1 . . . . 2 . . . . Utility 3 | . . . 1 . . . 2 . . . . . Weapon . | . . . . . . . . . . . . . Parts Attached 96 | 8 . 4 8 7 6 . 15 14 4 7 5 18 Power 8 | 1 . . . 2 . . 1 1 . . . 3 Engine 6 | 1 . . . 2 . . 1 1 . . . 1 Core . | . . . . . . . . . . . . . Reactor 2 | . . . . . . . . . . . . 2 Propulsion 31 | 2 . 1 3 2 2 . 3 6 3 1 2 6 Treads 1 | . . . 1 . . . . . . . . . Leg 1 | . . . . . . . . . . . . 1 Wheel 24 | 2 . 1 2 2 2 . 3 6 3 1 2 . Hover 5 | . . . . . . . . . . . . 5 Flight . | . . . . . . . . . . . . . Utility 45 | 3 . 1 4 3 3 . 11 5 1 6 2 6 Device 19 | 3 . 1 1 3 2 . 6 . . . 2 1 Storage 7 | . . . 2 . 1 . . 1 . 1 . 2 Processor 1 | . . . 1 . . . . . . . . . Hackware 1 | . . . . . . . . . . 1 . . Protection 17 | . . . . . . . 5 4 1 4 . 3 Artifact . | . . . . . . . . . . . . . Weapon 12 | 2 . 2 1 . 1 . . 2 . . 1 3 Energy Gun 1 | . . . . . . . . . . . . 1 Energy Cannon . | . . . . . . . . . . . . . Ballistic Gun 9 | 2 . 2 1 . 1 . . 2 . . 1 . Ballistic Cannon . | . . . . . . . . . . . . . Launcher . | . . . . . . . . . . . . . Special Weapon 2 | . . . . . . . . . . . . 2 Impact Weapon . | . . . . . . . . . . . . . Slashing Weapon . | . . . . . . . . . . . . . Piercing Weapon . | . . . . . . . . . . . . . Special Melee Weapon . | . . . . . . . . . . . . . Unidentified Prototypes 12 | . . 1 . . 2 . . . . . 1 8 Parts Lost 26 | . . . . . . . 2 . 1 1 . 22 Power 3 | . . . . . . . . . . . . 3 Propulsion 12 | . . . . . . . 1 . . 1 . 10 Utility 6 | . . . . . . . 1 . 1 . . 4 Weapon 5 | . . . . . . . . . . . . 5 Highest Loss Streak 9 | . . . . . . . 1 . 1 1 . 9 Average Slot Usage (%) 95 | . 100 100 93 98 91 88 88 98 99 97 99 81 Engine 8 | . 14 14 11 11 11 11 9 7 7 7 7 2 Wheel 32 | . 28 28 25 33 32 33 26 38 38 35 38 11 Device 14 | . 28 28 22 20 21 22 23 15 9 7 9 13 Storage 7 | . . . 3 11 11 11 9 7 7 7 7 9 Hackware 1 | . . . . . . . . . . 2 7 6 Protection 11 | . . . . . . . 10 15 20 20 12 4 Ballistic Gun 15 | . 28 28 22 22 15 11 9 13 15 15 15 7 Naked Turns 3 | . . . . . . . . . . . . 3 Heaviest Build 83 | 9 9 9 42 29 51 51 68 68 74 74 66 83 Greatest Support 94 | 20 20 20 30 30 30 30 30 80 76 70 70 94 Greatest Overweight (x) 15 | . . . 2 . 3 1 2 . 1 1 . 15 Average Overweight (x) . | . . . . . . 1 1 . . . . . Largest Inventory Capacity 20 | 4 4 4 16 10 12 12 12 12 12 12 12 20 Average Capacity 10 | 4 4 4 6 10 10 12 12 12 12 12 12 13 Most Carried 19 | 4 4 4 10 10 12 12 12 12 12 12 12 19 Average Carried 10 | 3 4 4 5 9 10 12 11 11 11 11 11 12 Final Capacity 12 | 4 4 4 10 10 12 12 12 12 12 12 12 4 Final Carried 12 | 4 4 4 9 10 12 12 12 12 12 12 12 4 Class Distribution -------------------- 50% | Mutant 23% | Scavenger-Mutant 11% | Derelict-Mutant 10% | Scavenger-Skirmisher 4% | Skirmisher Dominant Class ---------------- Mutant | -10/Materials Scavenger-Mutant | -10/Mines Scavenger-Mutant | -9/Materials Scavenger-Mutant | -9/Mines Scavenger-Mutant | -9/Exiles Scavenger-Skirmisher | -8/Mines Scavenger-Skirmisher | -8/Materials Skirmisher | -7/Factory Mutant | -7/Lower Caves Mutant | -7/Lower Caves Derelict-Mutant | -7/Zion Scavenger-Mutant | -7/Deep Caves Resources | -11 -10 -10 -9 -9 -9 -8 -8 -7 -7 -7 -7 -7 ----------- Run | Scr Mat Min Mat Min Exi Min Mat Fac Low Low Zio Dee Matter Collected 1815 | 350 36 67 16 272 . 60 145 30 295 223 46 275 Remotely . | . . . . . . . . . . . . . Salvage Created 2322 | 254 66 70 28 312 . . 1255 30 128 96 . 83 Parts 166 | 27 11 12 8 15 . . 67 2 9 10 . 5 Haulers Intercepted 1 | . 1 . . . . . . . . . . . Recyclers Shooed . | . . . . . . . . . . . . . Parts Field Recycled . | . . . . . . . . . . . . . Retrieved Matter . | . . . . . . . . . . . . . Parts Self-Destructed 23 | . . . . . . . . . 13 10 . . Prevented . | . . . . . . . . . . . . . Kills | -11 -10 -10 -9 -9 -9 -8 -8 -7 -7 -7 -7 -7 ------- Run | Scr Mat Min Mat Min Exi Min Mat Fac Low Low Zio Dee Combat Hostiles Destroyed 39 | . . 3 1 3 . . 22 . 6 2 . 2 Guns 39 | . . 3 1 3 . . 22 . 6 2 . 2 Classes Destroyed 15 | 3 2 1 1 3 . . 3 . . 1 . 1 Worker 4 | 2 . 1 . 1 . . . . . . . . Builder 1 | . . . 1 . . . . . . . . . Tunneler 12 | 9 . 1 . . . . 1 1 . . . . Hauler 1 | . 1 . . . . . . . . . . . Recycler 3 | 1 . . . 2 . . . . . . . . Operator 1 | . . . . . . . 1 . . . . . Watcher 6 | . 2 . . . . . 4 . . . . . Swarmer 11 | . . 3 1 . . . 1 . 6 . . . Grunt 14 | . . . . 1 . . 13 . . . . . Brawler 2 | . . . . 1 . . 1 . . . . . Duelist 1 | . . . . 1 . . . . . . . . Sentry 4 | . . . . . . . 4 . . . . . Hunter 4 | . . . . . . . 3 . . 1 . . Programmer 1 | . . . . . . . . . . 1 . . Assembled 1 | . . . . . . . . . . . . 1 Best Kill Streak 8 | 4 1 3 1 3 . . 8 1 3 1 . 1 Combat Bots Only 7 | . . 3 1 1 . . 7 . 3 1 . 1 Max Kills in Single Turn 2 | 1 1 1 1 1 . . 1 1 2 1 . 1 Gunslinging 1 | . . . . . . . . . 1 . . . Exploded . | . . . . . . . . . . . . . Melee . | . . . . . . . . . . . . . Uniques/NPCs Destroyed 1 | . . . . . . . . . . . . 1 Z-Imprinter (-7/Deep Caves) Combat | -11 -10 -10 -9 -9 -9 -8 -8 -7 -7 -7 -7 -7 -------- Run | Scr Mat Min Mat Min Exi Min Mat Fac Low Low Zio Dee Damage Taken 4259 | . 47 210 21 38 . . 662 . 545 115 . 2621 Core 865 | . 7 29 . 17 . . 85 . 59 16 . 652 Absorbed by Shields . | . . . . . . . . . . . . . Core Remaining (%) 91 | 100 . 85 . . . 95 84 . . . . . Volleys Fired 155 | 35 23 30 7 12 . . . 1 14 11 . 22 Largest 2 | 2 2 2 2 2 . . . 2 2 2 . 2 Hottest 160 | 40 40 40 43 43 . . . 56 56 56 . 160 Shots Fired 424 | 70 46 60 14 24 . . 118 4 28 22 . 38 Gun 422 | 70 46 60 14 24 . . 118 4 28 22 . 36 Cannon . | . . . . . . . . . . . . . Launcher . | . . . . . . . . . . . . . Special 2 | . . . . . . . . . . . . 2 Kinetic 422 | 70 46 60 14 24 . . 118 4 28 22 . 36 Thermal 2 | . . . . . . . . . . . . 2 Explosive . | . . . . . . . . . . . . . Electromagnetic . | . . . . . . . . . . . . . Robot Hit Streak 28 | 11 12 3 8 12 . . 28 16 19 5 . 3 Robot Miss Streak 15 | 4 9 4 6 3 . . 2 . 15 5 . 12 Penetration Max . | . . . . . . . . . . . . . Secondary Targets 5 | . . 1 1 . . . . . 3 . . . Max Gunslinging Chain 1 | . . 1 1 . . . . . 1 . . . Autonomous 121 | . . . . . . . 118 3 . . . . Shots Hit Robots 301 | 50 23 30 6 17 . . 101 3 24 21 . 26 Core Hits 145 | 23 9 10 3 11 . . 38 2 18 11 . 20 Critical Hits 3 | . 1 . . . . . 2 . . . . . Critical Kills 1 | . . . . . . . 1 . . . . . Critical Parts Destroyed 2 | . 1 . . . . . 1 . . . . . Melee Attacks . | . . . . . . . . . . . . . Impact . | . . . . . . . . . . . . . Slashing . | . . . . . . . . . . . . . Piercing . | . . . . . . . . . . . . . Sneak Attacks . | . . . . . . . . . . . . . Combat Hostiles . | . . . . . . . . . . . . . Follow-up Attacks . | . . . . . . . . . . . . . Damage Inflicted 4903 | 380 216 210 70 229 . . 2903 34 281 217 . 363 Guns 4869 | 380 216 210 70 229 . . 2903 34 281 217 . 329 Cannons . | . . . . . . . . . . . . . Explosions . | . . . . . . . . . . . . . Melee . | . . . . . . . . . . . . . Ramming 11 | . . . . . . . . . . . . 11 Kinetic 4869 | 380 216 210 70 229 . . 2903 34 281 217 . 329 Thermal 23 | . . . . . . . . . . . . 23 Explosive . | . . . . . . . . . . . . . Electromagnetic . | . . . . . . . . . . . . . Impact . | . . . . . . . . . . . . . Slashing . | . . . . . . . . . . . . . Piercing . | . . . . . . . . . . . . . Highest Corruption 3 | . . . . . . . . . . 3 3 . Average Corruption 2 | . . . . . . . . . . 2 3 . Corruption Purged . | . . . . . . . . . . . . . Effects 25 | . . . . . . . . . . 22 3 . Message Errors 8 | . . . . . . . . . . 8 . . Matter Fused 8 | . . . . . . . . . . 6 2 . Heat Flow Errors 3 | . . . . . . . . . . 2 1 . Energy Discharges 3 | . . . . . . . . . . 3 . . Data Loss (minor) 3 | . . . . . . . . . . 3 . . Overload Shots . | . . . . . . . . . . . . . Overflow Damage . | . . . . . . . . . . . . . Projectiles . | . . . . . . . . . . . . . Explosions . | . . . . . . . . . . . . . Melee . | . . . . . . . . . . . . . Knockbacks . | . . . . . . . . . . . . . Impact . | . . . . . . . . . . . . . Kinetic . | . . . . . . . . . . . . . Secondary . | . . . . . . . . . . . . . Self-Inflicted Damage 5 | . . . . . . . . . . . . 5 Shots . | . . . . . . . . . . . . . Rammed 4 | . . . . . . . . . . . . 4 Targets Rammed 4 | . . . . . . . . . . . . 4 Kicked . | . . . . . . . . . . . . . Crushed . | . . . . . . . . . . . . . Highest Temperature 196 | . . . . . . . . . . 196 196 76 Average Temperature 49 | . . . . . . . . . . 47 104 36 Received Heat Transfer 951 | . 24 . . 21 . . 243 . . . . 663 Siege Activations . | . . . . . . . . . . . . . Robots Corrupted . | . . . . . . . . . . . . . Combat Hostiles . | . . . . . . . . . . . . . Parts Fried . | . . . . . . . . . . . . . Impact Corruptions . | . . . . . . . . . . . . . Robots Melted . | . . . . . . . . . . . . . Combat Hostiles . | . . . . . . . . . . . . . Parts Melted . | . . . . . . . . . . . . . Heat Transferred 160 | . . . . . . . . . . . . 160 Parts Sabotaged . | . . . . . . . . . . . . . Parts Stolen . | . . . . . . . . . . . . . Parts Stripped . | . . . . . . . . . . . . . Power Chain Reactions . | . . . . . . . . . . . . . Missiles Intercepted . | . . . . . . . . . . . . . Alert | -11 -10 -10 -9 -9 -9 -8 -8 -7 -7 -7 -7 -7 ------- Run | Scr Mat Min Mat Min Exi Min Mat Fac Low Low Zio Dee Peak Influence 456 | 55 69 106 156 249 . . 456 230 . . . . Initial 207 | . 3 26 . 60 . . . 207 . . . . Average 121 | 24 20 83 27 123 . . 223 216 . . . . Maximum Alert Level 2 | . . . . 1 . . 2 1 . . . . Low Security (%) 72 | 100 100 100 100 87 . 100 44 . . . . . Level 1 25 | . . . . 12 . . 48 100 . . . . Level 2 1 | . . . . . . . 6 . . . . . Level 3 . | . . . . . . . . . . . . . Level 4 . | . . . . . . . . . . . . . Level 5 . | . . . . . . . . . . . . . High Security . | . . . . . . . . . . . . . Max Security . | . . . . . . . . . . . . . Squads Dispatched 8 | . . . 1 . . . 6 1 . . . . Investigation 3 | . . . . . . . 2 1 . . . . Extermination . | . . . . . . . . . . . . . Reinforcement 4 | . . . 1 . . . 3 . . . . . Assault . | . . . . . . . . . . . . . Garrison 1 | . . . . . . . 1 . . . . . Intercept . | . . . . . . . . . . . . . Construction Impeded 1 | . . . . . . . 1 . . . . . Haulers Reinforced . | . . . . . . . . . . . . . Stealth | -11 -10 -10 -9 -9 -9 -8 -8 -7 -7 -7 -7 -7 --------- Run | Scr Mat Min Mat Min Exi Min Mat Fac Low Low Zio Dee Distress Signals 7 | . . 1 . . . . 6 . . . . . Communications Jammed . | . . . . . . . . . . . . . Distress Signals . | . . . . . . . . . . . . . Times Spotted 84 | . 13 3 7 4 . . 33 . 10 2 . 12 Peak Tracking Total 7 | . 7 3 6 2 . . 5 . 4 1 . 6 Tactical Retreats 4 | . 1 . . . . . 1 . 2 . . . Traps | -11 -10 -10 -9 -9 -9 -8 -8 -7 -7 -7 -7 -7 ------- Run | Scr Mat Min Mat Min Exi Min Mat Fac Low Low Zio Dee Traps Triggered . | . . . . . . . . . . . . . Indirectly . | . . . . . . . . . . . . . Trap Hack Attempts . | . . . . . . . . . . . . . Triggered . | . . . . . . . . . . . . . Disarmed . | . . . . . . . . . . . . . Reprogrammed 6 | . . . . . . . . 6 . . . . Reused . | . . . . . . . . . . . . . Traps Extracted . | . . . . . . . . . . . . . Installed . | . . . . . . . . . . . . . Triggered . | . . . . . . . . . . . . . Machines | -11 -10 -10 -9 -9 -9 -8 -8 -7 -7 -7 -7 -7 ---------- Run | Scr Mat Min Mat Min Exi Min Mat Fac Low Low Zio Dee Machines Disabled 5 | . . . . . . . 3 . . . . 2 Max in Single Turn 1 | . . . . . . . 1 . . . . . Machines Sabotaged . | . . . . . . . . . . . . . Garrisons Compromised . | . . . . . . . . . . . . . Overloaded Fab Kills . | . . . . . . . . . . . . . Fab Network Shutdowns . | . . . . . . . . . . . . . Hacking | -11 -10 -10 -9 -9 -9 -8 -8 -7 -7 -7 -7 -7 --------- Run | Scr Mat Min Mat Min Exi Min Mat Fac Low Low Zio Dee Machines Accessed 21 | . 1 2 . . 4 . 8 5 1 . . . Terminals 11 | . 1 1 . . . . 7 2 . . . . Fabricators 1 | . . . . . . . . 1 . . . . Repair Stations . | . . . . . . . . . . . . . Recycling Units 1 | . . . . . . . . 1 . . . . Scanalyzers . | . . . . . . . . . . . . . Garrison Access 2 | . . . . . . . 1 1 . . . . Total Hacks 76 | . 5 5 . . 27 . 21 17 1 . . . Successful 46 | . 2 3 . . 27 . 7 6 1 . . . Failed 30 | . 3 2 . . . . 14 11 . . . . Catastrophic 7 | . . 1 . . . . 3 3 . . . . Database Lockouts . | . . . . . . . . . . . . . Manual 68 | . 5 4 6 . 1 . 20 16 . . 16 . Terminals 36 | . 5 4 . . . . 19 8 . . . . Fabricators 5 | . . . . . . . . 5 . . . . Repair Stations . | . . . . . . . . . . . . . Recycling Units 2 | . . . . . . . . 2 . . . . Scanalyzers . | . . . . . . . . . . . . . Garrison Access 4 | . . . . . . . 2 2 . . . . Terminal Hacks 35 | . . 3 . . 27 . 2 2 1 . . . Record 27 | . . . . . 27 . . . . . . . Open Door 2 | . . 1 . . . . . . 1 . . . Branch Access Points 1 | . . 1 . . . . . . . . . . Emergency Access Points 1 | . . 1 . . . . . . . . . . Terminal Index 1 | . . . . . . . . 1 . . . . Alert Level 1 | . . . . . . . 1 . . . . . Unreport Threat 1 | . . . . . . . 1 . . . . . Reprogram Traps 1 | . . . . . . . . 1 . . . . Fabricator Hacks 1 | . . . . . . . . 1 . . . . Network Status 1 | . . . . . . . . 1 . . . . Repair Station Hacks . | . . . . . . . . . . . . . Recycling Unit Hacks . | . . . . . . . . . . . . . Scanalyzer . | . . . . . . . . . . . . . Garrison Access Hacks . | . . . . . . . . . . . . . Unauthorized Hacks 10 | . 2 . . . . . 5 3 . . . . Terminals 8 | . 2 . . . . . 4 2 . . . . Track 1 | . 1 . . . . . . . . . . . Botnet 7 | . 1 . . . . . 4 2 . . . . Fabricators 1 | . . . . . . . . 1 . . . . Report 1 | . . . . . . . . 1 . . . . Repair Stations . | . . . . . . . . . . . . . Recycling Units . | . . . . . . . . . . . . . Scanalyzers . | . . . . . . . . . . . . . Garrison Access 1 | . . . . . . . 1 . . . . . Reprogram 1 | . . . . . . . 1 . . . . . Data Cores Recovered 1 | . . . . . . . 1 . . . . . Used 1 | . . . . . . . 1 . . . . . Hacking Detections 16 | . 1 1 1 . . . 8 5 . . . . Full Trace Events 2 | . . . . . . . 1 1 . . . . Feedback Events . | . . . . . . . . . . . . . Feedback Blocked . | . . . . . . . . . . . . . Robot Schematics Acquired . | . . . . . . . . . . . . . Robots Built . | . . . . . . . . . . . . . Matter . | . . . . . . . . . . . . . Time . | . . . . . . . . . . . . . Total Robot Build Rating . | . . . . . . . . . . . . . Part Schematics Acquired . | . . . . . . . . . . . . . Parts Built . | . . . . . . . . . . . . . Matter . | . . . . . . . . . . . . . Time . | . . . . . . . . . . . . . Total Part Build Rating . | . . . . . . . . . . . . . Parts Repaired . | . . . . . . . . . . . . . Time . | . . . . . . . . . . . . . Parts Recycled . | . . . . . . . . . . . . . Recycled Matter . | . . . . . . . . . . . . . Retrieved Matter . | . . . . . . . . . . . . . Retrieved Components . | . . . . . . . . . . . . . Parts Scanalyzed . | . . . . . . . . . . . . . Part Schematics Acquired . | . . . . . . . . . . . . . Parts Damaged . | . . . . . . . . . . . . . Bothacking | -11 -10 -10 -9 -9 -9 -8 -8 -7 -7 -7 -7 -7 ------------ Run | Scr Mat Min Mat Min Exi Min Mat Fac Low Low Zio Dee Used RIF Installer . | . . . . . . . . . . . . . Robots Hacked . | . . . . . . . . . . . . . Non-combat . | . . . . . . . . . . . . . Combat . | . . . . . . . . . . . . . Robot Hacks Applied . | . . . . . . . . . . . . . Relay Couplers Released . | . . . . . . . . . . . . . Robots Rewired . | . . . . . . . . . . . . . Allies Hacked . | . . . . . . . . . . . . . Hacks Repelled . | . . . . . . . . . . . . . Allies | -11 -10 -10 -9 -9 -9 -8 -8 -7 -7 -7 -7 -7 -------- Run | Scr Mat Min Mat Min Exi Min Mat Fac Low Low Zio Dee Total Allies 8 | . . 3 . 2 . . 1 . . . 2 . Largest Group 5 | . . 3 3 5 4 2 2 . . . 2 2 Highest-Rated Group 188 | . . 40 39 86 65 23 23 . . . 188 188 Highest-Rated Ally 94 | . . 16 16 31 26 16 16 . . . 94 94 Total Orders 2 | . . . . . . . . . . . 1 1 RETURN 2 | . . . . . . . . . . . 1 1 Ally Attacks 78 | . . . 18 17 . . 5 . . . . 38 Total Damage 2099 | . . . 232 254 . . 48 . . . . 1565 Kills 16 | . . . 4 3 . . . . . . . 9 Allies Corrupted . | . . . . . . . . . . . . . Allies Melted . | . . . . . . . . . . . . . Intel | -11 -10 -10 -9 -9 -9 -8 -8 -7 -7 -7 -7 -7 ------- Run | Scr Mat Min Mat Min Exi Min Mat Fac Low Low Zio Dee Robot Analysis Total . | . . . . . . . . . . . . . Derelict Logs Recovered 8 | . . . . 2 . . . . 1 3 2 . Drone Launches 2 | . . . . . . . . . . . 1 1 Drone Recoveries 2 | . . . . . . . . . . . 1 1 Exploration | -11 -10 -10 -9 -9 -9 -8 -8 -7 -7 -7 -7 -7 ------------- Run | Scr Mat Min Mat Min Exi Min Mat Fac Low Low Zio Dee Turns Passed 7959 | 443 235 463 230 562 516 52 758 355 1547 1322 913 563 Spaces Moved 7061 | 284 216 450 230 583 498 51 661 328 1452 1264 712 332 Core 13 | 2 . . . . . . . . . . . 11 Treads . | . . . . . . . . . . . . . Legs 77 | . . . . . . . . . . . . 77 Wheels 6850 | 282 216 450 230 583 498 51 661 328 1452 1264 712 123 Hover 121 | . . . . . . . . . . . . 121 Flight . | . . . . . . . . . . . . . Fastest Speed 48 | 50 80 80 80 80 80 90 90 98 94 94 92 48 Average Speed 94 | 79 80 80 80 80 86 90 93 98 101 101 92 121 Slowest Speed 800 | 80 80 80 100 80 110 90 100 100 104 107 94 800 Overloaded Moves . | . . . . . . . . . . . . . Propulsion Burnouts . | . . . . . . . . . . . . . Robots Hopped 3 | . . 3 . . . . . . . . . . Cave-ins Triggered . | . . . . . . . . . . . . . Exploration Rate (%) 52 | 12 34 55 23 96 90 12 51 9 98 99 69 39 Regions Visited 12 Branch Regions 8 Pre-discovered Areas 4 | . . . . 1 1 . . . 1 . 1 . Known Exits Taken 1 | . . . . . . . 1 . . . . . Unknown Exits Taken 11 | 1 1 1 1 1 1 1 . 1 1 1 1 . Scrap Searched 10 | . . 1 . 1 . . . . 2 4 2 . Spaces Dug . | . . . . . . . . . . . . . Terrain Destroyed 70 | . . . . . . . 68 2 . . . . Melee . | . . . . . . . . . . . . . Projectile 70 | . . . . . . . 68 2 . . . . AOE . | . . . . . . . . . . . . . Terrain Rammed . | . . . . . . . . . . . . . Walls Destroyed . | . . . . . . . . . . . . . Machines Disabled . | . . . . . . . . . . . . . Actions | -11 -10 -10 -9 -9 -9 -8 -8 -7 -7 -7 -7 -7 --------- Run | Scr Mat Min Mat Min Exi Min Mat Fac Low Low Zio Dee Total 8123 | 447 242 503 265 663 583 56 800 358 1500 1286 969 451 Wait 695 | 108 2 19 7 53 69 6 106 9 20 1 244 51 Move 7043 | 283 215 443 229 582 497 50 660 327 1451 1263 711 332 Hop 3 | . . 3 . . . . . . . . . . Pick Up 50 | 8 1 . 6 2 3 . 5 2 6 1 2 14 Fast Attach 42 | 7 . 1 5 1 5 . 10 . . 1 2 10 Attach 15 | . . . 1 . . . 1 4 1 1 . 7 Detach 2 | . . . 1 . . . . 1 . . . . Swap 39 | 1 . 3 2 6 1 . 4 10 3 5 3 1 Drop 75 | 5 1 4 7 7 8 . 14 4 5 3 7 10 Fire 155 | 35 23 30 7 12 . . . 1 14 11 . 22 Melee . | . . . . . . . . . . . . . Ram 4 | . . . . . . . . . . . . 4 Kick . | . . . . . . . . . . . . . Crush . | . . . . . . . . . . . . . Escape Stasis . | . . . . . . . . . . . . . Rewire . | . . . . . . . . . . . . . Trap . | . . . . . . . . . . . . . Miscellaneous . | . . . . . . . . . . . . . Route ------- -11/Scrapyard -10/Materials -10/Mines -9/Materials -9/Mines (discovered 2 exits: *Mat / *Exi) -9/Exiles -8/Mines -8/Materials (discovered 3 exits: *Fac x3) -7/Factory -7/Lower Caves -7/Lower Caves (discovered 2 exits: [*Fac] / *Zio) -7/Zion -7/Deep Caves History --------- Turn | Location | Event 17 | -11/Scrapyard | Discovered new exit (range 14) 444 | -11/Scrapyard | Entered Materials 445 | -10/Materials | Build established: Mutant 520 | -10/Materials | Discovered new exit (range 8) 679 | -10/Materials | Entered Mines 747 | -10/Mines | Assisted by bots powering up and referring to "LRC-V3" 779 | -10/Mines | Found a damaged Exp. Sensor Array with a note attached 781 | -10/Mines | Found Prototype Device 781 | -10/Mines | Identified Exp. Sensor Array 810 | -10/Mines | Met a Derelict who couldn't figure out how to use a Trap Extractor 844 | -10/Mines | Discovered new exit (range 6) 997 | -10/Mines | Found a hidden stash of uninstalled traps 1006 | -10/Mines | Assembled infested the area 1011 | -10/Mines | Assisted by a Guerilla fighting off Assembled 1142 | -10/Mines | Entered Materials 1142 | -9/Materials | Accompanied by 3 allies 1142 | -9/Materials | Evolved 2 slots: Propulsion x1, Utility x1 1145 | -9/Materials | Build established: Scavenger-Mutant 1344 | -9/Materials | Discovered new exit (range 16) 1372 | -9/Materials | Entered Mines 1372 | -9/Mines | Accompanied by 3 allies 1770 | -9/Mines | Learned location of 2 exits from Materials 1792 | -9/Mines | Discovered new exit (range 10) 1793 | -9/Mines | Learned location of Storage (-7) 1906 | -9/Mines | Deemed a non-threat by the Exiles lab entrance 1906 | -9/Mines | Discovered new exit (range 5) 1934 | -9/Mines | Entered Exiles 1934 | -9/Exiles | Accompanied by 4 allies 1953 | -9/Exiles | Met 8R-AWN 1964 | -9/Exiles | Led the pair of lost Derelicts to a safe place 1984 | -9/Exiles | Met EX-HEX 2056 | -9/Exiles | Met EX-BIN 2070 | -9/Exiles | Aligned with FarCom system 2071 | -9/Exiles | Given EX-Vault access code 2113 | -9/Exiles | Opened EX-Vault 2118 | -9/Exiles | Found Prototype Device 2118 | -9/Exiles | Identified Chronowheel 2118 | -9/Exiles | Activated Chronowheel 2124 | -9/Exiles | Found Prototype Ballistic Gun 2124 | -9/Exiles | Identified AWS/Gauss 2159 | -9/Exiles | Warned to stay clear of 0b10 Research branches 2184 | -9/Exiles | Met EX-DEC 2190 | -9/Exiles | Learned location of Zion (-7) 2237 | -9/Exiles | Visited The Gauntlet 2429 | -9/Exiles | Discovered new exit (range 10) 2450 | -9/Exiles | Left Exiles lab with AWS/Gauss 2450 | -9/Exiles | Entered Mines 2450 | -8/Mines | Accompanied by 2 allies 2485 | -8/Mines | Discovered new exit (range 11) 2502 | -8/Mines | Entered Materials 2502 | -8/Materials | Accompanied by 2 allies 2502 | -8/Materials | Evolved 2 slots: Utility x2 2503 | -8/Materials | Identified exit to Factory 2751 | -8/Materials | Build established: Scavenger-Skirmisher 2868 | -8/Materials | Destroyed 7 combat bots 3207 | -8/Materials | Garrison activated, responded to threat 3260 | -8/Materials | Entered Factory 3260 | -7/Factory | Evolved 2 slots: Propulsion x2 3531 | -7/Factory | Discovered new exit (range 11) 3552 | -7/Factory | Build established: Skirmisher 3615 | -7/Factory | Entered Lower Caves 3910 | -7/Lower Caves | Build established: Mutant 4102 | -7/Lower Caves | Attracted the attention of an 0b10 checkpoint 4116 | -7/Lower Caves | Encountered a Warlord checkpoint 4117 | -7/Lower Caves | Discovered new exit (range 12) 5162 | -7/Lower Caves | Entered another Lower Caves area 5229 | -7/Lower Caves | Discovered new exit (range 5) 5235 | -7/Lower Caves | Learned Factory trap positions 5875 | -7/Lower Caves | Learned Factory emergency access door positions 5946 | -7/Lower Caves | Encountered a Warlord checkpoint 5950 | -7/Lower Caves | Discovered new exit (range 10) 6027 | -7/Lower Caves | Learned Factory emergency access door positions 6484 | -7/Lower Caves | Entered Zion 6492 | -7/Zion | Given A8's code to call for help 6651 | -7/Zion | System corruption cleaned by Quarantine Array 6744 | -7/Zion | Learned location of Recycling (-7) 6760 | -7/Zion | Learned Factory security intel 6914 | -7/Zion | Received a hallucinogenic algorithm 6969 | -7/Zion | Build established: Derelict-Mutant 7002 | -7/Zion | Learned Factory emergency access door positions 7014 | -7/Zion | Found CR-A16's Pointy Stick 7064 | -7/Zion | Given the Hacking Drone Bay 7065 | -7/Zion | Found Prototype Device 7065 | -7/Zion | Identified Hacking Drone Bay 7149 | -7/Zion | Acquired unknown access codes intercepted by a Zionite 7189 | -7/Zion | Enhanced Grunt warped into view, answering call for help 7191 | -7/Zion | Enhanced Grunt warped into view, answering call for help 7371 | -7/Zion | Opened final containment barrier to the Deep Caves 7383 | -7/Zion | Discovered new exit (range 5) 7384 | -7/Zion | Saw the warning signs outside the Deep Caves entrance 7397 | -7/Zion | Entered Deep Caves 7397 | -7/Deep Caves | Accompanied by 2 allies 7543 | -7/Deep Caves | Attacked by Z-Imprinter 7547 | -7/Deep Caves | Z-Facility disabled 7582 | -7/Deep Caves | Destroyed Z-Imprinter 7620 | -7/Deep Caves | Lost 9 parts (1p5n2u1w) 7795 | -7/Deep Caves | Lost 5 parts (1p2n1u1w) 7952 | -7/Deep Caves | Core integrity fell below 50% 7959 | -7/Deep Caves | Core integrity fell below 20% 7960 | -7/Deep Caves | Destroyed by 3X-ENA(z) with Zionite Laser-S Last Messages --------------- 07943_ Dropped Enh. Flexi-carbon Leg. 07944_ Dropped Hcp. Storage Unit. 07944_ Enh. Flamer destroyed. 07944_ Dropped Hcp. Storage Unit. 07948_ Acquired Prototype Protection. 07948_ Identified Zio. Light Carapace. 07949_ Zio. Glidesys I destroyed. 07952_ Acquired Prototype Storage. 07952_ Identified Zio. Biocell. 07953_ Dropped Zio. Biocell. 07954_ Slammed into VU-9GF(z). 07954_ Zio. Light Carapace destroyed. 07955_ Zio. Light DM Reactor destroyed. 07956_ Discarded Mak. Hacking Suite. 07957_ Extracted 10 energy. 07957_ Dropped Lrn. Sensor Array. 07957_ Dropped Exp. Heat Sink. 07958_ Extracted 15 energy. 07958_ Slammed into VU-9GF(z). 07959_ Slammed into QJ-4MM(z). Map ----- +----------------------------------------------------+ | | | | | | | | | | | | | | | | | | | | | | | | | | | | | | | | | | | | | | | | | ???????????????????????###???????????????????????? | | ???????????????????????# !#????###############???? | | ???????????????????????#!z###### ##??? | | ???????????????????????#z!;## #??? | | ???????????????????????#z%## #### | | ??????????????????# ???#z@# ## | | ?????????????# ## ##zz| | | ????????? !!!! | | ????????? !!=!| | | ????????? /!!* | | ?????????? !* | | ?????????? """ """""" | | ??????????? """""""""""""" | | ??????????? """""""""""""" | | ??????????? """""""""""""" | | ???????????? """"""""""" | | ???????????? ""?""""""""""" | | ????????????? ""?""""""""" | | ????????????? """""""""" | | ?????????????? """"""" | | ???????????????? """"" | | ?????????????????? "" | | ????????????????????? "" | | ??????????????????????? " | | ????????????????????????? " | | ????????????????????????? | | ????????????????????????? | | ???????????????????????? | | ???????????????????????? | | ????????????????????????? | +----------------------------------------------------+ Best States ------------- Heat Dissipation 60 Energy Generation 27 Energy Capacity 290 Matter Stores 300 Matter Capacity 300 Sight Range 16 Robot Scan Range 30 Terrain Scan Range 16 Terrain Scan Density 85 Armor Coverage 675 Resistance: EM 15 Thermal Conversion 30 Evasion (%) 55 Offensive Hacking 11 Item Schematics ----------------- None Robot Schematics ------------------ None Fabricated ------------ Nothing Alien Tech Used ----------------- None Achievements -------------- Are We The Baddies? Signs Are For Wimps Challenges ------------ None Game ------ Seed ActuatorIntegrationNetwork Manual? 0 Play Time 00:52:36 Cumulative 36.5 hours Start 2022.02.06 @ 22:24:12 End 2022.02.06 @ 23:16:25 Sessions 1 Manual Loads 0 Difficulty Rogue Special Mode None Game No. 60 Rogue 60 Adventurer 0 Explorer 0 Win Type - Total 0 Types 0/0/0/0/0/0/0/0/0 Lore% 48 Gallery% 45 Achievement% 38 Wizard Run 0 Options --------- ASCII 0 Keyboard 0 Movement Numpad Keybinds 0 Fullscreen 1 Font 24/Smallcaps Map View 76x50 Tactical HUD 1 Map Filters NONE Filters NONE Steam 1 RUN: 65d199e1-f494-4345-84ed-326b655c885e